Cogmind - Beta 14 @@@ ROGUE MODE // 2024.11.25 @ 02:57:03 Player: akira Result: Destroyed by G-47 Trooper with Particle Gun Performance ------------- Evolutions (2) 1000 Regions Visited (6) 1200 Robots Destroyed (148) 740 Value Destroyed (6091) 6091 Prototype IDs (3) 60 Alien Tech Used (0) 0 Bonus (3142) 3142 TOTAL SCORE: 12233 Bonus ------- High Alert Combat Kills 1341 Follower Combat Kills 426 Entered Garrisons 400 Used RIF Installer 1000 Friendly Fire -25 Cogmind --------- Core Integrity 0/550 Matter 220/300 Energy 100/100 System Corruption 6% Temperature Cool (9) Movement Walking (120) Location -8/Garrison Parts ------- > --- POWER (1) -------- (None) > --- PROPULSION (3) --- Aluminum Leg Aluminum Leg Aluminum Leg > --- UTILITY (4) ------ Large Storage Unit Improved Light Armor Plating Improved Light Armor Plating Relay Coupler [NC] (26) > --- WEAPON (3) ------- Improved Datajack > --- INVENTORY (15) --- Aluminum Leg Aluminum Leg Aluminum Leg Improved Heat Sink Hacking Suite Hacking Suite Authchip [R/NC] Relay Coupler [NC] (29) Relay Coupler [Swarmer] (42) Relay Coupler [Brawler] (26) Relay Coupler [Sentry] (18) Relay Coupler [Hunter] (14) Peak State ------------ > --- POWER ------------ Light Nuclear Core > --- PROPULSION ------- Light Treads Improved Treads Improved Treads > --- UTILITY ---------- Advanced Heat Sink Large Storage Unit Improved Medium Armor Plating Improved Medium Armor Plating > --- WEAPON ----------- Heavy Particle Cannon Heavy Particle Cannon Gauss Rifle > --- INVENTORY -------- Light Treads Light Treads Light Treads Light Treads Improved Heat Sink Improved Medium Armor Plating Improved Medium Armor Plating Improved Medium Armor Plating Hacking Suite Hacking Suite Relay Coupler [Swarmer] Relay Coupler [Grunt] Heavy Particle Cannon Heavy Rocket Launcher Katana [Rating: 36] Favorites ----------- Power Light Nuclear Core Engine Ion Engine Power Core Light Nuclear Core Propulsion Improved Treads Treads Improved Treads Leg Aluminum Leg Utility Large Storage Unit Device Advanced Heat Sink Storage Large Storage Unit Hackware Relay Coupler [NC] Protection Improved Medium Armor Plating Weapon Heavy Particle Cannon Energy Gun Medium Laser Energy Cannon Heavy Particle Cannon Ballistic Gun Minigun Launcher Heavy Rocket Launcher Special Weapon Plasma Cutter Slashing Weapon Katana Special Melee Weapon Improved Datajack Build | -11 -10 -9 -8 -8 -8 -8 ------- Run | Yrd Mat Mat Mat Gar Mat Gar Slots Evolved 4 | . . 2 2 . . . Power . | . . . . . . . Propulsion 1 | . . 1 . . . . Utility 2 | . . 1 1 . . . Weapon 1 | . . . 1 . . . Parts Attached 136 | 4 16 24 20 35 10 27 Power 20 | 1 6 4 2 3 . 4 Engine 10 | 1 2 4 2 1 . . Core 10 | . 4 . . 2 . 4 Reactor . | . . . . . . . Propulsion 33 | 2 3 8 2 9 2 7 Treads 21 | 2 . 4 2 9 2 2 Leg 12 | . 3 4 . . . 5 Wheel . | . . . . . . . Hover . | . . . . . . . Flight . | . . . . . . . Utility 40 | 1 3 7 5 7 7 10 Device 10 | . 1 3 2 2 . 2 Storage 5 | 1 1 . 1 . 2 . Processor . | . . . . . . . Hackware 5 | . . . . . 3 2 Protection 20 | . 1 4 2 5 2 6 Artifact . | . . . . . . . Weapon 43 | . 4 5 11 16 1 6 Energy Gun 4 | . 2 . 1 . . 1 Energy Cannon 10 | . . . 1 7 . 2 Ballistic Gun 20 | . 2 3 9 6 . . Ballistic Cannon . | . . . . . . . Launcher 4 | . . 1 . 1 . 2 Special Weapon 1 | . . 1 . . . . Impact Weapon . | . . . . . . . Slashing Weapon 2 | . . . . 2 . . Piercing Weapon . | . . . . . . . Special Melee Weapon 2 | . . . . . 1 1 Unidentified Prototypes 3 | . . 1 2 . . . Parts Lost 33 | . 7 6 1 3 1 15 Power 8 | . 2 2 . 1 . 3 Propulsion 9 | . 2 2 1 . 1 3 Utility 6 | . . 1 . 1 . 4 Weapon 10 | . 3 1 . 1 . 5 Highest Loss Streak 5 | . 2 2 1 2 1 5 To Critical Strikes . | . . . . . . . Average Slot Usage (%) 95 | . 85 95 99 99 100 94 Engine 4 | . 6 10 8 1 . . Core 5 | . 7 . . 7 9 8 Treads 22 | . 17 24 26 27 27 12 Leg 5 | . 8 8 . . . 13 Device 7 | . 1 12 13 10 5 6 Storage 10 | . 14 11 9 9 9 9 Hackware 1 | . . . . . 4 6 Protection 12 | . 6 7 13 16 16 13 Energy Gun 2 | . 8 . . . . 2 Energy Cannon 9 | . . . 4 14 22 13 Ballistic Gun 10 | . 14 16 22 12 . . Special Melee Weapon 1 | . . . . . 4 5 Peak Build Rating 36 | 4 10 21 34 36 36 36 Average Rating 24 | 3 7 16 29 33 33 29 On Entrance 19 | . 4 9 21 34 34 31 Naked Turns . | . . . . . . . Heaviest Build 60 | 10 30 39 52 60 58 57 Greatest Support 75 | 40 40 75 69 69 65 62 Greatest Overweight (x) 4 | 3 1 1 1 . . 4 Average Overweight (x) . | . . . . . . . Largest Inventory Capacity 20 | 8 15 15 15 15 20 15 Average Capacity 14 | 7 14 15 15 15 15 15 Most Carried 16 | 6 12 15 15 15 16 15 Average Carried 12 | 5 7 12 14 13 13 13 Final Capacity 15 | 8 15 15 15 15 15 15 Final Carried 15 | 6 12 15 15 15 12 12 Class Distribution -------------------- 30% | Mutant 27% | Tank 20% | Bothacker-Mutant 14% | Scavenger-Tank 3% | Bothacker-Tank 3% | Scavenger-Mutant Dominant Class ---------------- Mutant | -10/Materials Mutant | -9/Materials Tank | -8/Materials Tank | -8/Garrison Bothacker-Mutant | -8/Materials Bothacker-Mutant | -8/Garrison Resources | -11 -10 -9 -8 -8 -8 -8 ----------- Run | Yrd Mat Mat Mat Gar Mat Gar Matter Collected 3217 | 204 491 472 733 863 126 328 Remotely . | . . . . . . . Salvage Created 5850 | . 849 950 1233 1353 730 735 Parts 327 | . 43 65 72 73 33 41 Haulers Intercepted 4 | . 1 1 2 . . . Recyclers Shooed 1 | . 1 . . . . . Parts Field Recycled . | . . . . . . . Retrieved Matter . | . . . . . . . Parts Self-Destructed . | . . . . . . . Prevented . | . . . . . . . Kills | -11 -10 -9 -8 -8 -8 -8 ------- Run | Yrd Mat Mat Mat Gar Mat Gar Combat Hostiles Destroyed 127 | . 17 23 20 31 15 21 Melee 1 | . . . . 1 . . Guns 65 | . 16 18 15 14 . 2 Cannons 50 | . . 4 5 12 14 15 AOE 8 | . . . . 4 . 4 Classes Destroyed 12 | . 6 1 . 4 1 . Builder 1 | . . . . . 1 . Hauler 4 | . 1 1 2 . . . Recycler 4 | . 1 1 1 . 1 . Operator 4 | . 1 1 2 . . . Watcher 8 | . 2 1 4 1 . . Swarmer 30 | . 3 10 4 4 5 4 Cutter 4 | . . . . 3 . 1 Grunt 69 | . 14 6 13 17 6 13 Duelist 1 | . . . . 1 . . Sentry 16 | . . 7 3 3 3 . Hunter 3 | . . . . 2 1 . Programmer 4 | . . . . 1 . 3 Best Kill Streak 7 | . 4 4 7 6 7 3 Combat Bots Only 6 | . 4 3 6 6 4 3 Max Kills in Single Turn 4 | . 1 1 1 4 2 2 Gunslinging . | . . . . . . . Exploded 4 | . . . . 4 . 2 Melee 1 | . . . . 1 . . Uniques/NPCs Destroyed . | . . . . . . . Combat | -11 -10 -9 -8 -8 -8 -8 -------- Run | Yrd Mat Mat Mat Gar Mat Gar Hostile Shots Fired 769 | . 145 140 81 135 105 163 Missed 175 | . 29 31 19 36 26 34 Damage Taken 8076 | . 1260 1204 962 1564 938 2148 Core 1017 | . 238 216 132 166 100 165 Absorbed by Shields 67 | . . 67 . . . . Redirected to Shielding 20 | . 15 5 . . . . Regen/Repaired (Parts) 201 | . . . 114 . 78 9 Core Remaining (%) 50 | 100 4 46 . . . . Volleys Fired 458 | . 109 90 73 83 37 66 Largest 3 | . 2 2 3 3 3 3 Hottest 225 | . 100 50 108 225 225 225 Shots Fired 891 | . 173 124 180 227 79 108 Gun 559 | . 173 97 150 125 . 14 Cannon 294 | . . . 30 100 79 85 Launcher 11 | . . . . 2 . 9 Special 27 | . . 27 . . . . Kinetic 456 | . 100 81 150 125 . . Thermal 424 | . 73 43 30 100 79 99 Explosive 11 | . . . . 2 . 9 Electromagnetic . | . . . . . . . Robot Hit Streak 29 | . 16 11 20 29 13 11 Robot Miss Streak 4 | . 4 3 4 3 3 3 Penetration Max 1 | . . . . 1 . . Secondary Targets . | . . . . . . . Shots Hit Robots 562 | . 117 85 118 131 57 54 Core Hits 255 | . 41 38 53 59 23 41 Critical Kills 1 | . . . . . 1 . Critical Parts Destroyed 2 | . . . 1 1 . . Critical Strikes 7 | . 4 . 1 1 1 . Burn 4 | . 4 . . . . . Meltdown 1 | . . . . . 1 . Destroy 2 | . . . 1 1 . . Melee Attacks 17 | . . . . 2 11 4 Impact . | . . . . . . . Slashing 2 | . . . . 2 . . Piercing . | . . . . . . . Sneak Attacks 5 | . . . . . 5 . Combat Hostiles . | . . . . . . . Follow-up Attacks . | . . . . . . . Damage Inflicted 11087 | . 1466 1209 2184 3024 1325 1879 Guns 5399 | . 1466 971 1684 1160 . 118 Cannons 4497 | . . . 500 1560 1325 1112 Explosions 926 | . . . . 277 . 649 Melee 27 | . . . . 27 . . Ramming . | . . . . . . . Kinetic 4559 | . 843 872 1684 1160 . . Thermal 5575 | . 623 337 500 1560 1325 1230 Explosive 926 | . . . . 277 . 649 Electromagnetic . | . . . . . . . Impact . | . . . . . . . Slashing 27 | . . . . 27 . . Piercing . | . . . . . . . Highest Corruption 6 | . 2 . . 1 1 6 Average Corruption 1 | . 2 . . 1 1 1 Corruption Purged . | . . . . . . . Corruption Blocked . | . . . . . . . Effects 52 | . 19 . . 5 9 19 Message Errors 14 | . 5 . . 3 3 3 Matter Fused 12 | . 4 . . . 4 4 Heat Flow Errors 5 | . 3 . . . . 2 Energy Discharges 7 | . 1 . . 1 1 4 Parts Rejected 1 | . 1 . . . . . Data Loss (minor) 8 | . 2 . . 1 1 4 Data Loss (major) 3 | . 1 . . . . 2 Misfires 1 | . 1 . . . . . Weapon Failures 1 | . 1 . . . . . Overload Shots . | . . . . . . . Overflow Damage 38 | . . . 6 2 10 20 Projectiles 18 | . . . 6 2 10 . Explosions 20 | . . . . . . 20 Melee . | . . . . . . . Knockbacks . | . . . . . . . Impact . | . . . . . . . Kinetic . | . . . . . . . Secondary . | . . . . . . . Self-Inflicted Damage 131 | . . . . . . 131 Shots 4 | . . . . . . 4 Rammed . | . . . . . . . Targets Rammed . | . . . . . . . Kicked . | . . . . . . . Crushed . | . . . . . . . Highest Temperature 435 | . 336 43 417 367 365 435 Average Temperature 114 | . 103 16 154 91 122 127 Received Heat Transfer 3260 | . 576 371 540 612 342 819 Effects 15 | . . . 5 3 4 3 Shutdowns 3 | . . . 3 . . . Energy Bleed 1 | . . . 1 . . . Interference 9 | . . . 1 3 3 2 Matter Decay 1 | . . . . . . 1 Short Circuit 1 | . . . . . 1 . Siege Activations . | . . . . . . . Robots Corrupted . | . . . . . . . Combat Hostiles . | . . . . . . . Parts Fried . | . . . . . . . Impact Corruptions . | . . . . . . . Robots Melted 3 | . 1 1 . . 1 . Combat Hostiles 3 | . 1 1 . . 1 . Parts Melted 16 | . 5 2 . 3 4 2 Heat Transferred 10132 | . 2146 1073 814 2368 1961 1770 Parts Sabotaged . | . . . . . . . Parts Stolen . | . . . . . . . Parts Stripped . | . . . . . . . Power Chain Reactions . | . . . . . . . Alert | -11 -10 -9 -8 -8 -8 -8 ------- Run | Yrd Mat Mat Mat Gar Mat Gar Peak Influence 1939 | . 223 423 404 1939 1273 1601 Initial 945 | . . 43 79 210 945 703 Average 658 | . 72 191 177 1001 1088 1173 Maximum Alert Level 5 | . 1 2 2 5 4 5 Low Security (%) 33 | 100 97 55 60 . . . Level 1 13 | . 2 41 39 11 . . Level 2 7 | . . 2 . 27 . . Level 3 19 | . . . . 24 52 39 Level 4 20 | . . . . 22 47 48 Level 5 6 | . . . . 14 . 12 High Security . | . . . . . . . Max Security . | . . . . . . . Squads Dispatched 14 | . 5 3 2 . 4 . Investigation 5 | . 3 2 . . . . Extermination . | . . . . . . . Reinforcement 7 | . 2 1 1 . 3 . Assault 1 | . . . . . 1 . Garrison 1 | . . . 1 . . . Intercept . | . . . . . . . Searches Triggered . | . . . . . . . Construction Impeded 1 | . . . . . 1 . Haulers Reinforced . | . . . . . . . Active Scanning Responses . | . . . . . . . Cargo Convoy Interrupts . | . . . . . . . Stealth | -11 -10 -9 -8 -8 -8 -8 --------- Run | Yrd Mat Mat Mat Gar Mat Gar Distress Signals 13 | . 1 5 2 . 5 . Communications Jammed . | . . . . . . . Distress Signals . | . . . . . . . Times Spotted 200 | . 35 32 28 32 38 35 Peak Tracking Total 7 | . 6 4 5 6 7 5 Tactical Retreats 16 | . 8 2 . 1 4 1 Traps | -11 -10 -9 -8 -8 -8 -8 ------- Run | Yrd Mat Mat Mat Gar Mat Gar Traps Triggered 5 | . 4 . . 1 . . Indirectly . | . . . . . . . Trap Hack Attempts . | . . . . . . . Triggered . | . . . . . . . Disarmed . | . . . . . . . Reprogrammed . | . . . . . . . Reused . | . . . . . . . Traps Extracted . | . . . . . . . Installed . | . . . . . . . Triggered . | . . . . . . . Machines | -11 -10 -9 -8 -8 -8 -8 ---------- Run | Yrd Mat Mat Mat Gar Mat Gar Machines Disabled 12 | . . . 1 7 1 3 Max in Single Turn 2 | . . . 1 2 1 1 Garrison Relay 6 | . . . . 4 . 2 Machines Repaired . | . . . . . . . Machines Dismantled . | . . . . . . . Machines Sabotaged . | . . . . . . . Overloaded Fab Kills . | . . . . . . . Hacking | -11 -10 -9 -8 -8 -8 -8 --------- Run | Yrd Mat Mat Mat Gar Mat Gar Machines Accessed 14 | . 1 4 3 3 2 1 Terminals 10 | . 1 3 1 3 1 1 Fabricators . | . . . . . . . Repair Stations 1 | . . . 1 . . . Recycling Units . | . . . . . . . Scanalyzers 1 | . . 1 . . . . Garrison Access 2 | . . . 1 . 1 . Total Hacks 30 | . 4 12 6 4 2 2 Successful 15 | . 2 5 4 2 1 1 Failed 15 | . 2 7 2 2 1 1 Catastrophic 2 | . . . . 1 1 . Database Lockouts . | . . . . . . . Manual 8 | . . 7 . . 1 . Terminals 22 | . 4 9 2 4 1 2 Fabricators . | . . . . . . . Repair Stations 2 | . . . 2 . . . Recycling Units . | . . . . . . . Scanalyzers 3 | . . 3 . . . . Garrison Access 3 | . . . 2 . 1 . Terminal Hacks 9 | . 2 3 1 2 . 1 Robot Analysis 1 | . . 1 . . . . Alert Level 2 | . 1 1 . . . . Unreport Threat 1 | . . 1 . . . . Hauler Manifests 1 | . . . 1 . . . Zone Layout 1 | . 1 . . . . . Garrison Registry 1 | . . . . 1 . . Patrol Navigation 1 | . . . . 1 . . Security Stations 1 | . . . . . . 1 Fabricator Hacks . | . . . . . . . Repair Station Hacks 2 | . . . 2 . . . Scan Component 1 | . . . 1 . . . Repair 1 | . . . 1 . . . Recycling Unit Hacks . | . . . . . . . Scanalyzer 2 | . . 2 . . . . Insert Component 1 | . . 1 . . . . Analyze 1 | . . 1 . . . . Garrison Access Hacks 2 | . . . 1 . 1 . Unlock Access 2 | . . . 1 . 1 . Unauthorized Hacks . | . . . . . . . Terminals . | . . . . . . . Fabricators . | . . . . . . . Repair Stations . | . . . . . . . Recycling Units . | . . . . . . . Scanalyzers . | . . . . . . . Garrison Access . | . . . . . . . Data Cores Recovered 1 | . . . 1 . . . Used . | . . . . . . . Hacking Detections 12 | . 1 3 3 3 1 1 Full Trace Events 3 | . . 2 . 1 . . Feedback Events . | . . . . . . . Feedback Blocked . | . . . . . . . Robot Schematics Acquired . | . . . . . . . Robots Built . | . . . . . . . Authchips . | . . . . . . . Time . | . . . . . . . Total Robot Build Rating . | . . . . . . . Part Schematics Acquired 1 | . . 1 . . . . Parts Built . | . . . . . . . Authchips . | . . . . . . . Time . | . . . . . . . Total Part Build Rating . | . . . . . . . Parts Repaired 1 | . . . 1 . . . Time 32 | . . . 32 . . . Parts Recycled . | . . . . . . . Recycled Matter . | . . . . . . . Retrieved Matter . | . . . . . . . Retrieved Components . | . . . . . . . Parts Scanalyzed 1 | . . 1 . . . . Part Schematics Acquired 1 | . . 1 . . . . Parts Damaged . | . . . . . . . Bothacking | -11 -10 -9 -8 -8 -8 -8 ------------ Run | Yrd Mat Mat Mat Gar Mat Gar Used RIF Installer 2 | . . . . 1 . 1 Watcher Feeds 1 | . . . . . . 1 Robots Hacked 8 | . . . . . 7 1 Non-combat 3 | . . . . . 3 . Combat 5 | . . . . . 4 1 Robot Hacks Applied 10 | . . . . . 9 1 parse_system 1 | . . . . . 1 . purge_threat 1 | . . . . . 1 . streamctrl_high 1 | . . . . . 1 . formatsys_low 3 | . . . . . 3 . formatsys_high 4 | . . . . . 3 1 Relay Couplers Released 28 | . . . . 22 . 6 Machine Destruction 24 | . . . . 18 . 6 Programmers 4 | . . . . 4 . . Attached 5 | . . . . . 3 2 Fabnet Peak Effective % . | . . . . . . . Robots Rewired . | . . . . . . . Allies Hacked . | . . . . . . . Hacks Repelled . | . . . . . . . Allies | -11 -10 -9 -8 -8 -8 -8 -------- Run | Yrd Mat Mat Mat Gar Mat Gar Total Allies 8 | . . . . . 7 1 Largest Group 6 | . . . . . 6 4 Highest-Rated Group 122 | . . . . . 122 97 Highest-Rated Ally 29 | . . . . . 29 29 Total Orders 12 | . . . . . 1 11 STAY 1 | . . . . . . 1 FOLLOW 1 | . . . . . . 1 AID 10 | . . . . . 1 9 Ally Attacks 125 | . . . . . 75 50 Total Damage 1749 | . . . . . 920 829 Kills 15 | . . . . . 7 8 Allies Corrupted . | . . . . . . . Allies Melted . | . . . . . . . Intel | -11 -10 -9 -8 -8 -8 -8 ------- Run | Yrd Mat Mat Mat Gar Mat Gar Robot Analysis Total 1 | . . 1 . . . . Derelict Logs Recovered . | . . . . . . . Drone Launches . | . . . . . . . Drone Recoveries . | . . . . . . . Exploration | -11 -10 -9 -8 -8 -8 -8 ------------- Run | Yrd Mat Mat Mat Gar Mat Gar Turns Passed 10961 | 73 2063 1508 1232 2763 1224 2098 Spaces Moved 4303 | 45 677 641 450 1273 448 769 Core 14 | 14 . . . . . . Treads 3547 | 31 460 515 450 1273 448 370 Legs 742 | . 217 126 . . . 399 Wheels . | . . . . . . . Hover . | . . . . . . . Flight . | . . . . . . . Fastest Speed 50 | 50 160 120 160 160 155 155 Average Speed 166 | 138 180 158 161 160 156 180 Slowest Speed 400 | 200 240 190 240 160 160 400 Overloaded Moves . | . . . . . . . Propulsion Burnouts . | . . . . . . . Robots Hopped . | . . . . . . . Cave-ins Triggered . | . . . . . . . Exploration Rate (%) 52 | 4 81 53 43 77 31 77 Regions Visited 6 Branch Regions . Pre-discovered Areas . | . . . . . . . Known Exits Taken 2 | . . . 1 . 1 . Unknown Exits Taken 3 | 1 1 1 . . . . Scrap Searched . | . . . . . . . Spaces Dug . | . . . . . . . Terrain Destroyed 154 | . . . 3 7 16 128 Melee . | . . . . . . . Projectile 22 | . . . 3 2 16 1 AOE 132 | . . . . 5 . 127 Terrain Rammed . | . . . . . . . Walls Destroyed . | . . . . . . . Machines Disabled . | . . . . . . . Actions | -11 -10 -9 -8 -8 -8 -8 --------- Run | Yrd Mat Mat Mat Gar Mat Gar Total 7349 | 55 1341 995 838 1845 901 1374 Wait 2248 | . 522 187 265 399 387 488 Move 4299 | 44 676 640 450 1272 448 769 Hop . | . . . . . . . Pick Up 108 | 7 15 27 14 28 3 14 Fast Attach 12 | 3 1 3 2 . . 3 Attach 50 | 1 9 14 6 6 2 12 Detach 6 | . . 5 . . . 1 Swap 74 | . 6 7 12 29 8 12 Drop 77 | . 3 22 16 26 5 5 Fire 458 | . 109 90 73 83 37 66 Melee 17 | . . . . 2 11 4 Ram . | . . . . . . . Kick . | . . . . . . . Crush . | . . . . . . . Escape Stasis . | . . . . . . . Rewire . | . . . . . . . Trap . | . . . . . . . Miscellaneous . | . . . . . . . Route ------- -11/Scrapyard -10/Materials (discovered 4 exits: *Mat x2 / [*Min x2]) -9/Materials (discovered 2 exits: *Mat / [*Min]) -8/Materials (discovered 3 exits: [*Fac x2] / Gar) -8/Garrison (discovered 4 exits: *Mat x4) -8/Materials (discovered 3 exits: [*Sto x2] / Gar) -8/Garrison (discovered 2 exits: [*Fac x2]) History --------- Turn | Location | Event 20 | -11/Scrapyard | Discovered new exit (range 15) 74 | -11/Scrapyard | Entered Materials 317 | -10/Materials | Build established: Mutant 1176 | -10/Materials | Discovered new exit (range 8) 1267 | -10/Materials | Core integrity fell below 50% 1365 | -10/Materials | Discovered new exit (range 16) 1815 | -10/Materials | Discovered new exit (range 10) 2062 | -10/Materials | Core integrity fell below 20% 2114 | -10/Materials | Discovered new exit (range 10) 2137 | -10/Materials | Entered another Materials area 2137 | -9/Materials | Evolved 2 slots: Propulsion x1, Utility x1 2632 | -9/Materials | Discovered new exit (range 16) 3560 | -9/Materials | Discovered new exit (range 11) 3561 | -9/Materials | Core integrity fell below 50% 3645 | -9/Materials | Entered another Materials area 3645 | -8/Materials | Evolved 2 slots: Utility x1, Weapon x1 3933 | -8/Materials | Build established: Tank 4003 | -8/Materials | Discovered new exit (range 11) 4639 | -8/Materials | Repaired Imp. Treads 4643 | -8/Materials | Discovered new exit (range 3) 4743 | -8/Materials | Garrison activated, responded to threat 4877 | -8/Materials | Identified exit to Garrison 4877 | -8/Materials | Entered Garrison 5044 | -8/Garrison | Triggered checkpoint 5161 | -8/Garrison | Triggered checkpoint 5202 | -8/Garrison | Discovered new exit (range 6) 5406 | -8/Garrison | Discovered new exit (range 8) 5435 | -8/Garrison | Triggered checkpoint 5559 | -8/Garrison | Triggered checkpoint 5667 | -8/Garrison | Discovered new exit (range 67) 5667 | -8/Garrison | Discovered new exit (range 65) 5667 | -8/Garrison | Discovered new exit (range 25) 5667 | -8/Garrison | Discovered new exit (range 56) 5765 | -8/Garrison | Installed Relay Interface Framework 5943 | -8/Garrison | Triggered checkpoint 6203 | -8/Garrison | Triggered checkpoint 6553 | -8/Garrison | Triggered checkpoint 6602 | -8/Garrison | Core integrity fell below 50% 6853 | -8/Garrison | Garrison Relay disabled 6976 | -8/Garrison | Build established: Scavenger-Tank 7017 | -8/Garrison | Triggered checkpoint 7045 | -8/Garrison | Garrison Relay disabled 7083 | -8/Garrison | Garrison Relay disabled 7248 | -8/Garrison | Garrison Relay disabled 7640 | -8/Garrison | Entered Materials 7816 | -8/Materials | Discovered new exit (range 8) 8203 | -8/Materials | Discovered new exit (range 13) 8440 | -8/Materials | First assault squad dispatched 8525 | -8/Materials | Build established: Bothacker-Mutant 8864 | -8/Materials | Identified exit to Garrison 8864 | -8/Materials | Entered Garrison 8864 | -8/Garrison | Accompanied by 4 allies 8929 | -8/Garrison | Learned Factory security intel 9062 | -8/Garrison | Triggered checkpoint 9184 | -8/Garrison | Garrison Relay disabled 9256 | -8/Garrison | Triggered checkpoint 9373 | -8/Garrison | Triggered checkpoint 9375 | -8/Garrison | Triggered checkpoint 9668 | -8/Garrison | Triggered checkpoint 9774 | -8/Garrison | Triggered checkpoint 9855 | -8/Garrison | Lost 5 parts (2n2u1w) 10208 | -8/Garrison | Triggered checkpoint 10216 | -8/Garrison | Core integrity fell below 20% 10231 | -8/Garrison | Garrison Relay disabled 10342 | -8/Garrison | Triggered checkpoint 10379 | -8/Garrison | Discovered new exit (range 15) 10408 | -8/Garrison | Expanded RIF knowledge: Watcher Feeds 10617 | -8/Garrison | Discovered new exit (range 10) 10677 | -8/Garrison | Lost 4 parts (1p1u2w) 10918 | -8/Garrison | Triggered checkpoint 10962 | -8/Garrison | Destroyed by G-47 Trooper with Particle Gun Last Messages --------------- 10721_ System corrupted: Matter fused (-8). 10722_ The unstable cave ceiling collapses. 10753_ System corrupted: Heat flow error (+166). 10758_ The unstable cave ceiling collapses. 10824_ System corrupted: Substantial component data lost. 10827_ The unstable cave ceiling collapses. 10868_ System corrupted: Heat flow error (+170). 10895_ System corrupted: Component data lost. 10918_ Beams of light sweep through the air. An alarm sounds. 10928_ Administrator 3a reports 0b10 security level has risen to 5. 10931_ Hvy. Rocket Launcher destroyed. 10932_ Administrator 3a reports 0b10 security level has lowered to 4. 10938_ 8H>ZZO TD